bitfinex-derivatives/quotes_BTCF0:USTF0_20260119
["timestamp","ask_amount","ask_price","bid_price","bid_amount"]
[1768786482495,0.09109204,92776.0,92736.0,7.8e-07]
[1768786482694,0.11026769,92772.0,92746.0,0.2121666]
[1768786482899,0.09712,92776.0,92748.0,0.2121666]
[1768786483104,0.010783,92773.0,92751.0,0.2121666]
[1768786483404,0.010784,92768.0,92747.0,0.11754888]
[1768786483598,0.010784,92772.0,92749.0,0.11754888]
[1768786483903,0.010784,92772.0,92751.0,0.2121666]
[1768786484291,0.02654897,92768.0,92751.0,0.2121666]
[1768786484492,0.02654897,92767.0,92751.0,0.2121666]
[1768786484687,0.02654897,92766.0,92751.0,0.2121666]
[1768786484993,0.02654897,92765.0,92752.0,0.11754888]
[1768786485192,0.10187404,92781.0,92758.0,0.2121666]
[1768786485397,0.09712,92780.0,92761.0,0.2121666]
[1768786485602,0.010783,92779.0,92761.0,0.2121666]
[1768786485798,0.09712,92780.0,92761.0,0.2121666]
[1768786486096,0.010781,92791.0,92767.0,0.2121666]
[1768786486293,0.010781,92791.0,92769.0,0.2121666]
[1768786486603,0.010781,92796.0,92772.0,0.2121666]
[1768786486895,0.010782,92788.0,92772.0,0.09461772]
[1768786487490,0.09712,92798.0,92772.0,0.09461772]
[1768786487491,0.010781,92792.0,92772.0,0.09461772]
[1768786487888,0.01315298,92789.0,92772.0,0.2121666]
[1768786488497,0.00237098,92789.0,92772.0,0.2121666]
[1768786488803,0.00237098,92789.0,92773.0,0.2121666]
[1768786489201,0.010782,92788.0,92773.0,0.2121666]
[1768786489800,0.01315298,92789.0,92773.0,0.2121666]
[1768786490804,0.010782,92784.0,92765.0,0.2121666]
[1768786491005,0.010782,92784.0,92766.0,0.21462888]
[1768786491298,0.010782,92781.0,92766.0,0.21462888]
[1768786491504,0.010782,92781.0,92766.0,0.11754888]
[1768786491697,0.010782,92781.0,92765.0,0.09461772]
[1768786492904,0.09781074,92785.0,92761.0,0.11771057]
[1768786493203,0.010783,92773.0,92761.0,0.00016169]
[1768786494115,0.010733,92773.0,92761.0,0.00016169]
[1768786495103,0.010783,92776.0,92761.0,0.00016169]
[1768786495302,0.010783,92779.0,92761.0,0.00016169]
[1768786495804,0.09781074,92780.0,92761.0,0.00016169]
[1768786496004,0.010784,92772.0,92761.0,0.00016169]
[1768786496406,0.010783,92775.0,92761.0,0.00016169]
[1768786497317,0.010733,92775.0,92761.0,0.00016169]
[1768786497606,0.010783,92774.0,92761.0,0.00016169]
[1768786498913,0.010783,92777.0,92761.0,0.00016169]
[1768786499424,0.010783,92775.0,92761.0,0.00016169]
[1768786499601,0.010783,92775.0,92733.0,0.08701986]
[1768786499602,0.09781074,92775.0,92749.0,0.00237201]
[1768786499804,0.21070997,92776.0,92749.0,0.01315801]
[1768786499805,0.010784,92767.0,92749.0,0.01315801]
[1768786499998,0.010784,92770.0,92751.0,0.010786]
[1768786500200,0.010784,92770.0,92750.0,0.010786]
[1768786500405,0.010784,92766.0,92749.0,0.00237201]
[1768786501100,0.010784,92770.0,92749.0,0.01315801]
[1768786501307,0.010784,92769.0,92749.0,0.01315801]
[1768786501506,0.010785,92762.0,92749.0,0.00237201]
[1768786501809,0.010785,92763.0,92749.0,0.00237201]
[1768786503440,0.010785,92756.0,92749.0,0.00237201]
[1768786503607,0.010785,92756.0,92744.0,0.00237212]
[1768786503802,0.09781074,92760.0,92744.0,0.00237212]
[1768786504002,0.21144071,92755.0,92735.0,0.09708]
[1768786504210,0.09781074,92753.0,92735.0,0.09708]
[1768786504411,0.010786,92750.0,92735.0,0.09708]
[1768786504614,0.010787,92742.0,92724.0,0.00237263]
[1768786504921,0.010787,92742.0,92725.0,0.09708]
[1768786505110,0.010787,92742.0,92727.0,0.00016169]
[1768786505415,0.09781074,92741.0,92724.0,0.00237263]
[1768786505713,0.010787,92740.0,92724.0,0.00237263]
[1768786506215,0.010787,92738.0,92724.0,0.00237263]
[1768786506518,0.09790036,92737.0,92724.0,0.00237263]
[1768786506819,8.962e-05,92737.0,92724.0,0.00237263]
[1768786507514,0.00016169,92746.0,92735.0,0.010788]
[1768786507719,0.09708,92752.0,92740.0,0.11081147]
[1768786508119,0.09470839,92752.0,92740.0,0.11081147]
[1768786508419,0.010785,92759.0,92741.0,0.010787]
[1768786508616,0.11997075,92758.0,92740.0,0.20180526]
[1768786508806,0.010786,92755.0,92740.0,0.20180526]
[1768786509006,0.02289075,92754.0,92740.0,0.20180526]
[1768786509311,0.02289075,92753.0,92738.0,0.00016169]
[1768786509520,0.02289075,92752.0,92738.0,0.00016169]
[1768786509718,0.02289075,92751.0,92738.0,0.00016169]
[1768786510015,0.02289075,92750.0,92738.0,0.00016169]
[1768786510215,0.107866,92755.0,92738.0,0.00016169]
[1768786510216,0.02289075,92749.0,92738.0,0.00016169]
[1768786510415,0.0228976,92748.0,92738.0,0.00016169]
[1768786510716,0.234338,92747.0,92721.0,0.010789]
[1768786510925,0.21144071,92745.0,92723.0,0.09708]
[1768786511216,0.010787,92743.0,92725.0,0.010789]
[1768786511718,0.21144071,92745.0,92727.0,0.010789]
[1768786511919,0.010787,92744.0,92724.0,0.01316163]
[1768786512316,0.010787,92744.0,92726.0,0.010789]
[1768786513220,0.010787,92744.0,92728.0,0.010788]
[1768786514017,0.010786,92748.0,92728.0,0.010789]
[1768786514211,0.09708,92751.0,92738.0,0.12159847]
[1768786514417,0.09708,92751.0,92739.0,0.11081147]
[1768786514618,0.09708,92751.0,92740.0,0.12159847]
[1768786514812,0.010785,92758.0,92740.0,0.12159847]
[1768786515017,0.09708,92757.0,92740.0,0.12159847]
[1768786515214,0.010786,92753.0,92740.0,0.11081147]
[1768786515822,0.09708,92755.0,92734.0,0.11081147]
[1768786516120,0.010786,92753.0,92734.0,0.11081147]
[1768786516324,0.010786,92753.0,92735.0,0.00016169]
[1768786516723,0.010786,92753.0,92735.0,0.01094969]
[1768786516923,0.09708,92755.0,92735.0,0.01094969]
[1768786517623,0.09708,92755.0,92738.0,0.010787]
[1768786517823,0.010786,92752.0,92737.0,0.11081147]
[1768786518220,0.010786,92755.0,92736.0,0.09099379]
[1768786518430,0.107866,92755.0,92736.0,0.09099379]
[1768786518626,0.010786,92753.0,92736.0,0.09099379]
[1768786519126,0.010786,92753.0,92735.0,0.01094969]
[1768786519327,0.09781074,92743.0,92735.0,6.9e-07]
[1768786520226,0.010787,92746.0,92735.0,6.9e-07]
[1768786520436,0.010787,92744.0,92735.0,6.9e-07]
[1768786520930,0.09781074,92738.0,92735.0,6.9e-07]
[1768786521417,0.12441697,92743.0,92735.0,6.9e-07]
[1768786521618,0.09781074,92745.0,92735.0,6.9e-07]
[1768786521826,0.10859774,92745.0,92735.0,6.9e-07]
[1768786522026,0.010787,92743.0,92735.0,6.9e-07]
[1768786522225,0.010787,92744.0,92735.0,6.9e-07]
[1768786522421,0.010786,92748.0,92735.0,6.9e-07]
[1768786522930,0.010787,92746.0,92735.0,6.9e-07]
[1768786524632,0.2036859,92752.0,92735.0,6.9e-07]
[1768786524833,0.010787,92744.0,92735.0,6.9e-07]
[1768786525317,0.2036859,92750.0,92735.0,6.9e-07]
[1768786526120,0.010787,92743.0,92735.0,6.9e-07]
[1768786526628,0.09328117,92741.0,92735.0,6.9e-07]
[1768786526836,0.09328117,92740.0,92735.0,6.9e-07]
[1768786527229,0.2144729,92739.0,92735.0,6.9e-07]
[1768786527536,0.09328117,92736.0,92735.0,6.9e-07]
[1768786527827,0.09328117,92742.0,92735.0,6.9e-07]
[1768786528022,0.10406817,92742.0,92735.0,6.9e-07]
[1768786528420,0.09020884,92742.0,92735.0,6.9e-07]
[1768786528624,0.12119173,92738.0,92724.0,0.00237263]
[1768786528925,0.010789,92729.0,92712.0,0.10787]
[1768786529533,0.010789,92729.0,92712.0,0.12133768]
[1768786530135,0.010789,92727.0,92712.0,0.11054768]
[1768786531530,0.01094978,92730.0,92713.0,0.01079]
[1768786532344,0.010789,92728.0,92712.0,0.11054768]
[1768786532526,0.010789,92726.0,92712.0,0.11054768]
[1768786532722,0.010789,92726.0,92712.0,0.01346768]
[1768786532927,0.010789,92726.0,92709.0,0.12333888]
[1768786533229,0.010789,92726.0,92709.0,0.21878593]
[1768786533440,0.010789,92729.0,92713.0,0.01079]
[1768786533624,0.00016178,92730.0,92713.0,0.20799493]
[1768786533824,0.00016178,92730.0,92716.0,0.12333788]
[1768786534236,0.00016178,92730.0,92716.0,0.01079]
[1768786534629,0.00016178,92730.0,92716.0,0.11254788]
[1768786534831,0.00016178,92730.0,92708.0,0.20799493]
[1768786535023,0.010789,92728.0,92711.0,0.12333788]
[1768786535228,0.00016178,92730.0,92715.0,0.01079]
[1768786535424,0.00016178,92730.0,92711.0,0.20799493]
[1768786535630,0.00016178,92730.0,92712.0,0.11254788]
[1768786535825,0.00016178,92730.0,92713.0,0.11254788]
[1768786536030,0.09708,92735.0,92720.0,0.20799493]
[1768786536230,0.02277677,92734.0,92721.0,0.11254788]
[1768786536425,0.010788,92734.0,92719.0,0.01079]
[1768786536630,0.09708,92735.0,92722.0,0.010789]
[1768786536834,0.0227797,92734.0,92722.0,0.010789]
[1768786537026,0.09708,92735.0,92722.0,0.010789]
[1768786537225,0.02277986,92734.0,92721.0,0.11254788]
[1768786537438,0.010788,92733.0,92717.0,0.09544705]
[1768786537636,0.010788,92733.0,92718.0,0.12333788]
[1768786538436,0.09708,92735.0,92718.0,0.12333788]
[1768786538645,0.02279242,92734.0,92718.0,0.12333788]
[1768786538844,0.02279242,92733.0,92718.0,0.06398345]
[1768786539045,0.09708,92735.0,92718.0,0.06398345]
[1768786539231,0.02279234,92734.0,92718.0,0.06398345]
[1768786539430,0.02279063,92733.0,92718.0,0.06398345]
[1768786539638,0.02279063,92732.0,92718.0,0.06398345]
[1768786539837,0.02279063,92731.0,92718.0,0.06398345]
[1768786540037,0.02279063,92730.0,92718.0,0.06398345]
[1768786540239,0.02279063,92729.0,92718.0,0.06398345]
[1768786540439,0.02279063,92728.0,92718.0,0.06398345]
[1768786540639,0.010788,92734.0,92718.0,0.06398345]
[1768786540842,0.010788,92732.0,92718.0,0.06398345]
[1768786541029,0.010788,92730.0,92718.0,0.05319345]
[1768786541340,0.02278778,92729.0,92718.0,0.05319345]
[1768786541839,0.010789,92728.0,92718.0,0.05319345]
[1768786542141,0.010788,92731.0,92718.0,0.05319345]
[1768786542337,0.010788,92729.0,92718.0,0.05319345]
[1768786542540,0.02278381,92728.0,92717.0,0.00016178]
[1768786542840,0.09060559,92725.0,92708.0,0.09712]
[1768786543040,0.010789,92722.0,92708.0,0.09712]
[1768786543833,0.010789,92722.0,92706.0,0.10974074]
[1768786544039,0.010789,92722.0,92706.0,0.20686074]
[1768786544434,0.010789,92722.0,92707.0,0.10974074]
[1768786545143,0.09060559,92728.0,92707.0,0.10974074]
[1768786545342,0.02277752,92727.0,92707.0,0.10974074]
[1768786545543,0.02277752,92726.0,92707.0,0.10974074]
[1768786545746,0.09060559,92728.0,92707.0,0.10974074]
[1768786545947,0.010789,92722.0,92707.0,0.10974074]
[1768786546247,0.010789,92726.0,92707.0,0.10974074]
[1768786546447,0.010789,92724.0,92708.0,0.10974074]
[1768786546947,0.010789,92724.0,92708.0,0.20667619]
[1768786547143,0.010789,92727.0,92709.0,0.12053174]
[1768786547551,0.010789,92725.0,92709.0,0.12053174]
[1768786547845,0.010789,92722.0,92708.0,0.09693545]
[1768786548147,0.010789,92722.0,92708.0,0.20667619]
[1768786549346,0.09060559,92728.0,92708.0,0.20667619]
[1768786549548,0.010788,92731.0,92704.0,0.00237314]
[1768786549549,0.11661273,92725.0,92704.0,0.00237314]
[1768786549750,0.010789,92722.0,92706.0,0.010791]
[1768786549952,0.09060559,92724.0,92708.0,0.010791]
[1768786550148,0.010789,92725.0,92708.0,0.010791]
[1768786550349,0.010789,92723.0,92706.0,0.10974074]
[1768786550547,0.010789,92723.0,92706.0,0.20667619]
[1768786550739,0.010789,92723.0,92707.0,0.12053174]
[1768786550939,0.010789,92724.0,92708.0,0.010791]
[1768786551139,0.010789,92724.0,92708.0,0.12053174]
[1768786551448,0.010789,92724.0,92708.0,0.21746719]
[1768786551852,0.010789,92726.0,92710.0,0.010791]
[1768786552238,0.010788,92729.0,92712.0,0.12053074]
[1768786552445,0.02296403,92728.0,92714.0,0.01079]
[1768786552742,0.02296403,92727.0,92712.0,0.10974074]
[1768786552944,0.02296403,92726.0,92713.0,0.01079]
[1768786553145,0.010788,92729.0,92713.0,0.01079]
[1768786553352,0.02296784,92728.0,92713.0,0.1262685]
[1768786553550,0.02296804,92727.0,92713.0,0.1262685]
[1768786553747,0.02296804,92726.0,92713.0,0.1262685]
[1768786553952,0.010788,92729.0,92713.0,0.1262685]
[1768786554152,0.12008817,92728.0,92713.0,0.1262685]
[1768786554353,0.03375717,92727.0,92713.0,0.1154785]
[1768786554653,0.02296817,92726.0,92713.0,0.1154785]
[1768786555050,0.02296817,92726.0,92714.0,0.09844778]
[1768786555251,0.09712,92728.0,92706.0,0.21392628]
[1768786555450,0.02296865,92727.0,92710.0,0.1262695]
[1768786555651,0.09712,92728.0,92712.0,0.01079]
[1768786555856,0.02296849,92727.0,92712.0,0.1262685]
[1768786556046,0.010789,92726.0,92712.0,0.1154785]
[1768786556253,0.010789,92723.0,92709.0,0.1154785]
[1768786556557,0.010789,92726.0,92710.0,0.1154785]
[1768786557552,0.010789,92724.0,92709.0,0.09844778]
[1768786557753,0.010789,92724.0,92709.0,0.22471728]
[1768786558056,0.010789,92724.0,92709.0,0.19892628]
[1768786558258,0.010789,92724.0,92710.0,0.1154785]
[1768786558458,0.09712,92728.0,92710.0,0.1154785]
[1768786558658,0.02297611,92727.0,92710.0,0.1154785]
[1768786558858,0.010789,92722.0,92710.0,0.1154785]
[1768786559252,0.010789,92725.0,92710.0,0.1154785]
[1768786559658,0.010789,92725.0,92710.0,0.1262695]
[1768786559960,0.09712,92728.0,92712.0,0.09844778]
[1768786560258,0.010789,92724.0,92711.0,0.1154785]
[1768786560459,0.01079,92720.0,92707.0,0.09844778]
[1768786560767,0.01079,92720.0,92708.0,0.1154785]
[1768786561451,0.22027433,92724.0,92704.0,0.11785164]
[1768786561655,0.20948533,92719.0,92704.0,0.00237314]
[1768786561857,0.09429818,92712.0,92690.0,0.1154785]
[1768786562063,0.010792,92698.0,92687.0,0.09712]
[1768786562262,0.010792,92701.0,92687.0,0.09712]
[1768786562562,0.00016178,92702.0,92687.0,0.09712]
[1768786562860,0.010792,92698.0,92687.0,0.09712]
[1768786563559,0.00016178,92702.0,92687.0,0.09712]
[1768786564562,0.010792,92698.0,92687.0,0.09712]
[1768786564965,0.010792,92701.0,92687.0,0.09712]
[1768786565264,0.00016178,92702.0,92688.0,0.010793]
[1768786565456,0.09712,92713.0,92698.0,0.1154785]
[1768786565764,0.010791,92708.0,92693.0,0.1154785]
[1768786566351,0.01079,92712.0,92693.0,0.1154785]
[1768786566757,0.01079,92712.0,92693.0,0.21392628]
[1768786566957,0.01079,92712.0,92694.0,0.1154785]
[1768786567257,0.010791,92710.0,92694.0,0.1154785]
[1768786567764,0.09712,92713.0,92694.0,0.1154785]
[1768786568264,0.09712,92713.0,92691.0,0.1154785]
[1768786568265,0.010791,92709.0,92691.0,0.1154785]
[1768786568464,0.010791,92709.0,92691.0,0.1262715]
[1768786568663,0.010791,92709.0,92692.0,0.1154785]
[1768786569264,0.09712,92713.0,92695.0,0.1154785]
[1768786569466,0.09712,92713.0,92696.0,0.010792]
[1768786569664,0.09712,92713.0,92696.0,0.1262705]
[1768786569864,0.09429818,92725.0,92702.0,0.1154785]
[1768786570165,0.010789,92722.0,92706.0,0.21392628]
[1768786570355,0.107909,92722.0,92706.0,0.21392628]
[1768786571565,0.02296027,92721.0,92706.0,0.21392628]
[1768786571769,0.107909,92722.0,92707.0,0.010791]
[1768786572067,0.02296031,92721.0,92704.0,0.00016178]
[1768786572277,0.010791,92705.0,92704.0,7.8e-07]
[1768786572566,0.22027633,92705.0,92704.0,7.8e-07]
[1768786584078,0.09429818,92705.0,92704.0,7.8e-07]
[1768786584979,0.10186309,92707.0,92704.0,7.8e-07]
[1768786585978,0.21856527,92707.0,92704.0,7.8e-07]
[1768786586171,0.10186309,92705.0,92704.0,7.8e-07]
[1768786587866,0.010791,92709.0,92704.0,7.8e-07]
[1768786588081,0.09712,92715.0,92704.0,7.8e-07]
[1768786588276,0.09107209,92722.0,92704.0,7.8e-07]
[1768786588277,0.01079,92716.0,92704.0,0.1154373]
[1768786588484,0.01,92716.0,92704.0,0.1154373]
[1768786588877,0.01,92716.0,92704.0,0.2134168]
[1768786589078,0.00762737,92716.0,92704.0,0.2134168]
[1768786589575,0.00762737,92716.0,92704.0,0.09798028]
[1768786589781,0.00762737,92716.0,92705.0,0.11543652]
[1768786590782,0.01841737,92716.0,92704.0,7.8e-07]
[1768786590985,0.00762737,92716.0,92704.0,7.8e-07]
[1768786591483,0.01079,92715.0,92704.0,7.8e-07]
[1768786592085,0.09712,92717.0,92704.0,7.8e-07]
[1768786592285,0.02331041,92716.0,92704.0,7.8e-07]
[1768786592484,0.01,92716.0,92704.0,7.8e-07]
[1768786592986,0.02079,92716.0,92704.0,7.8e-07]
[1768786593285,0.010791,92712.0,92704.0,7.8e-07]
[1768786594789,0.01079,92716.0,92704.0,7.8e-07]
[1768786594988,0.01079,92714.0,92704.0,7.8e-07]
[1768786595282,0.09712,92717.0,92704.0,7.8e-07]
[1768786595489,0.0233093,92716.0,92704.0,7.8e-07]
[1768786595683,0.09712,92717.0,92704.0,7.8e-07]
[1768786595884,0.0233092,92716.0,92704.0,7.8e-07]
[1768786596084,0.09712,92717.0,92704.0,7.8e-07]
[1768786596286,0.02330885,92716.0,92704.0,7.8e-07]
[1768786596585,0.09712,92717.0,92704.0,7.8e-07]
[1768786596887,0.010791,92712.0,92704.0,7.8e-07]
[1768786597487,0.09712,92717.0,92704.0,7.8e-07]
[1768786597784,0.02330838,92716.0,92704.0,7.8e-07]
[1768786597989,0.09712,92717.0,92704.0,7.8e-07]
[1768786598287,0.07002859,92738.0,92704.0,7.8e-07]
[1768786598288,0.09371512,92729.0,92711.0,0.010791]
[1768786598485,0.09712,92730.0,92717.0,0.09172162]
[1768786598686,0.09712,92730.0,92720.0,0.10809136]
[1768786598886,0.05306786,92737.0,92720.0,0.19981298]
[1768786599086,0.010788,92735.0,92721.0,0.10809136]
[1768786599786,0.010788,92736.0,92722.0,0.10809136]
[1768786600187,0.010788,92736.0,92722.0,0.19981298]
[1768786600387,0.010788,92736.0,92723.0,0.10809136]
[1768786600685,0.04227986,92737.0,92723.0,0.10809136]
[1768786601078,0.010787,92746.0,92727.0,0.19981298]
[1768786601282,0.09712,92744.0,92730.0,0.10809136]
[1768786602102,0.04224701,92753.0,92736.0,0.10809136]
[1768786602394,0.04224701,92753.0,92733.0,0.010788]
[1768786602395,0.09712,92749.0,92738.0,0.10809136]
[1768786602585,0.09712,92749.0,92738.0,0.0498104]
[1768786602786,0.09712,92749.0,92737.0,0.09172162]
[1768786603098,0.09712,92749.0,92738.0,0.010787]
[1768786603292,0.09712,92757.0,92741.0,0.09172162]
[1768786604189,0.09712,92757.0,92742.0,0.10250862]
[1768786604494,0.09712,92757.0,92742.0,0.09172162]
[1768786604799,0.010785,92762.0,92749.0,0.10809136]
[1768786605299,0.00016178,92759.0,92749.0,0.10809136]
[1768786606192,0.09712,92771.0,92756.0,0.19981298]
[1768786606390,0.09712,92771.0,92758.0,0.19981298]
[1768786606593,0.09712,92779.0,92760.0,0.10809136]
[1768786607287,0.010783,92774.0,92760.0,0.10809136]
[1768786607494,0.010783,92774.0,92760.0,0.10825314]
[1768786608195,0.010783,92777.0,92760.0,0.10825314]
[1768786608508,0.010783,92775.0,92760.0,0.10825314]
[1768786609200,0.107903,92779.0,92760.0,0.10825314]
[1768786609393,0.107903,92779.0,92762.0,0.10809136]
[1768786610292,0.02254313,92778.0,92762.0,0.10809136]
[1768786610487,0.02254313,92777.0,92762.0,0.10809136]
[1768786610698,0.02254313,92776.0,92763.0,0.10809136]
[1768786610899,0.02254313,92775.0,92763.0,0.10809136]
[1768786611097,0.02254313,92774.0,92764.0,0.10809136]
[1768786611303,0.02254313,92774.0,92760.0,0.00016178]
[1768786611304,0.02254313,92773.0,92760.0,0.00016178]
[1768786611490,0.02254313,92772.0,92760.0,0.19997476]
[1768786611797,0.02254313,92771.0,92760.0,0.19997476]
[1768786612009,0.010784,92767.0,92760.0,0.00016178]
[1768786612298,0.02254313,92766.0,92754.0,0.09708]
[1768786612508,0.02254313,92765.0,92754.0,0.09708]
[1768786612798,0.02254313,92764.0,92754.0,0.09708]
[1768786612998,0.02254313,92763.0,92754.0,0.09708]
[1768786613194,0.02254313,92762.0,92754.0,0.09708]
[1768786613394,0.02254313,92761.0,92754.0,0.09708]
[1768786613595,0.02254313,92760.0,92754.0,0.09708]
[1768786613807,0.02254313,92759.0,92755.0,0.09992356]
[1768786614000,0.010784,92768.0,92755.0,0.09992356]
[1768786614901,0.010784,92766.0,92754.0,0.09708]
[1768786616908,0.09371512,92774.0,92754.0,0.09708]
[1768786617206,0.010785,92763.0,92754.0,0.09708]
[1768786617509,0.09496678,92769.0,92749.0,0.0996137]
[1768786617693,0.010784,92765.0,92749.0,0.0025337]
[1768786618094,0.09496678,92769.0,92749.0,0.0025337]
[1768786618095,0.010784,92766.0,92749.0,0.0025337]
[1768786618416,0.09496678,92769.0,92749.0,0.0025337]
[1768786618707,0.010784,92765.0,92749.0,0.0025337]
[1768786619096,0.010784,92765.0,92749.0,0.11875801]
[1768786619794,0.09496678,92769.0,92749.0,0.11875801]
[1768786620001,0.20524621,92768.0,92749.0,0.0025337]
[1768786620200,0.09496678,92768.0,92749.0,0.11875801]
[1768786621104,0.09496678,92768.0,92750.0,0.11622431]
[1768786621105,0.010784,92768.0,92750.0,0.11622431]
[1768786621412,0.010783,92775.0,92754.0,0.11622431]
[1768786621607,0.010783,92775.0,92755.0,0.11622431]
[1768786621801,0.20524621,92777.0,92755.0,0.11622431]
[1768786622410,0.20524621,92764.0,92749.0,0.0025337]
[1768786622607,0.010784,92769.0,92750.0,0.11622431]
[1768786622805,0.09708,92768.0,92751.0,0.010786]
[1768786623198,0.09708,92768.0,92753.0,0.010786]
[1768786623395,0.09708,92768.0,92750.0,0.26140693]
[1768786623396,0.010784,92768.0,92750.0,0.22693387]
[1768786623600,0.010784,92768.0,92751.0,0.11622431]
[1768786623910,0.09708,92769.0,92752.0,0.010786]
[1768786625006,0.20524621,92767.0,92749.0,0.0133197]
[1768786625203,0.09496678,92767.0,92749.0,0.0133197]
[1768786625714,0.09496678,92767.0,92752.0,0.010786]
[1768786625909,0.09708,92769.0,92754.0,0.12701031]
[1768786626310,0.09708,92769.0,92754.0,0.010786]
[1768786626505,0.11027943,92778.0,92754.0,0.21614787]
[1768786626712,0.11900315,92777.0,92764.0,0.11622431]
[1768786626911,0.09708,92777.0,92766.0,0.010784]
[1768786627416,0.09708,92777.0,92767.0,0.11622431]
[1768786628318,0.0023711,92784.0,92767.0,0.11622431]
[1768786628614,0.02193436,92779.0,92766.0,0.09992356]
[1768786628814,0.02193436,92778.0,92766.0,0.09992356]
[1768786629017,0.00016178,92780.0,92766.0,0.09992356]
[1768786629215,0.02193431,92779.0,92766.0,0.09992356]
[1768786629414,0.02193431,92778.0,92763.0,0.11622431]
[1768786629710,0.02193431,92777.0,92764.0,0.11622431]
[1768786630016,0.00016178,92780.0,92766.0,0.010784]
[1768786630218,0.02194222,92779.0,92766.0,0.010784]
[1768786630511,0.02194222,92778.0,92766.0,0.010784]
[1768786630712,0.02194222,92777.0,92765.0,0.11622431]
[1768786630919,0.00016178,92780.0,92765.0,0.11622431]
[1768786631113,0.02194868,92779.0,92764.0,0.09992356]
[1768786631417,0.02194868,92778.0,92764.0,0.21614787]
[1768786631608,0.02194868,92777.0,92764.0,0.21614787]
[1768786631811,0.02194868,92776.0,92765.0,0.010784]
[1768786632115,0.00016178,92780.0,92765.0,0.22693187]
[1768786632299,0.0219597,92779.0,92767.0,0.11622431]
[1768786632501,0.0219597,92778.0,92767.0,0.11622431]
[1768786632704,0.0219597,92777.0,92767.0,0.11622431]
[1768786632915,0.0219597,92776.0,92767.0,0.11622431]
[1768786633113,0.0219597,92775.0,92767.0,0.11622431]
[1768786633415,0.00016178,92780.0,92770.0,0.010784]
[1768786633614,0.09945098,92789.0,92777.0,0.11622431]
[1768786634007,0.00237098,92789.0,92772.0,0.11622431]
[1768786634606,0.00237098,92789.0,92773.0,0.010783]
[1768786634813,0.00237098,92789.0,92773.0,0.11622431]
[1768786635108,0.010783,92780.0,92771.0,0.00016169]
[1768786637515,0.010783,92779.0,92771.0,0.00016169]
[1768786637815,0.010783,92779.0,92764.0,0.09708]
[1768786638605,0.010782,92782.0,92764.0,0.22408831]
[1768786639002,0.09496678,92784.0,92764.0,0.11622431]
[1768786639417,0.10574878,92784.0,92765.0,0.00016169]
[1768786639615,0.10574878,92784.0,92765.0,0.01094569]
[1768786639917,0.00016169,92783.0,92771.0,0.010784]
[1768786640518,0.00016169,92783.0,92771.0,0.12700831]
[1768786640717,0.00016169,92783.0,92771.0,0.11622431]
[1768786640908,0.01094369,92783.0,92768.0,0.09992356]
[1768786641521,0.010783,92776.0,92765.0,0.00016169]
[1768786641716,0.12106243,92779.0,92765.0,0.00016169]
[1768786642318,0.010782,92782.0,92765.0,0.01094569]
[1768786642822,0.010783,92778.0,92765.0,0.00016169]
[1768786643314,0.010782,92781.0,92765.0,0.00016169]
[1768786643519,0.00016169,92783.0,92767.0,0.11422795]
[1768786643717,0.010782,92782.0,92767.0,0.11422795]
[1768786643918,0.010783,92780.0,92765.0,0.00016169]
[1768786644424,0.010782,92781.0,92765.0,0.01094569]
[1768786644723,0.010782,92781.0,92765.0,0.00016169]
[1768786645624,0.010783,92779.0,92765.0,0.00016169]
[1768786645926,0.010783,92778.0,92765.0,0.00016169]
[1768786646508,0.00016169,92783.0,92773.0,0.11422795]
[1768786646725,0.00237098,92789.0,92773.0,0.21772987]
[1768786647017,0.00237098,92789.0,92765.0,0.00016169]
[1768786647018,0.00237098,92789.0,92770.0,0.11422795]
[1768786647325,0.010782,92786.0,92770.0,0.11422795]
[1768786647718,0.01315298,92789.0,92770.0,0.21773087]
[1768786648323,0.01315298,92789.0,92770.0,0.20694687]
[1768786648324,0.010782,92786.0,92770.0,0.20694687]
[1768786648820,0.01315298,92789.0,92772.0,0.20694687]
[1768786649124,0.01315298,92789.0,92773.0,0.20694687]
[1768786649423,0.01315298,92789.0,92774.0,0.11422795]
[1768786649618,0.010782,92787.0,92773.0,0.09271892]
[1768786650222,0.010782,92787.0,92769.0,0.11422795]
[1768786650421,0.010782,92785.0,92769.0,0.11422795]
[1768786650624,0.09337502,92784.0,92765.0,0.00016169]
[1768786650819,0.21589588,92784.0,92765.0,0.00016169]
[1768786651620,0.21589588,92784.0,92766.0,0.010784]
[1768786652722,0.21589588,92784.0,92765.0,0.00016169]
[1768786652723,0.00237098,92789.0,92768.0,0.20694687]
[1768786652918,0.00237098,92789.0,92774.0,0.010783]
[1768786653119,0.00237098,92789.0,92772.0,0.11422795]
[1768786653427,0.00237098,92789.0,92773.0,0.010783]
[1768786654224,0.00237098,92789.0,92773.0,0.12501095]
[1768786654925,0.00237098,92789.0,92775.0,0.010783]
[1768786655124,0.00237098,92789.0,92777.0,0.12501095]
[1768786655313,0.00237098,92789.0,92774.0,0.20694687]
[1768786655518,0.09708,92795.0,92779.0,0.09271892]
[1768786655718,0.01078,92799.0,92784.0,0.11422795]
[1768786656025,0.09708,92798.0,92784.0,0.11422795]
[1768786656618,0.09708,92800.0,92784.0,0.11422795]
[1768786657237,0.01078,92802.0,92784.0,0.11422795]
[1768786657531,0.01078,92800.0,92784.0,0.11422795]
[1768786657723,0.09704,92801.0,92784.0,0.11422795]
[1768786657929,0.09704,92800.0,92784.0,0.11422795]
[1768786658138,0.01078,92799.0,92782.0,0.00016169]
[1768786658832,0.09704,92800.0,92783.0,0.010782]
[1768786659017,0.09704,92800.0,92783.0,0.21817444]
[1768786660231,0.09704,92800.0,92787.0,0.12623428]
[1768786660732,0.09704,92800.0,92783.0,0.10272216]
[1768786660924,0.00237059,92804.0,92785.0,0.010782]
[1768786661125,0.00237059,92804.0,92789.0,0.20739244]
[1768786661430,0.00237059,92804.0,92791.0,0.010781]
[1768786661736,0.00237059,92804.0,92790.0,0.11545228]
[1768786662430,0.00237059,92804.0,92791.0,0.12623328]
[1768786662630,0.00237059,92804.0,92793.0,0.21817344]
[1768786662829,0.00237059,92804.0,92794.0,0.11545228]
[1768786663538,0.00237059,92804.0,92793.0,0.10272116]
[1768786663539,0.00237047,92809.0,92797.0,0.01078]
[1768786664032,0.00237047,92809.0,92797.0,0.12623228]
[1768786664631,0.00237047,92809.0,92795.0,0.11545228]
[1768786664834,0.00237047,92809.0,92796.0,0.09194016]
[1768786665236,0.00237047,92809.0,92796.0,0.20739244]
[1768786666033,0.05711047,92812.0,92796.0,0.20739244]
[1768786666232,0.21126274,92807.0,92788.0,0.01237146]
[1768786666433,0.22204274,92806.0,92783.0,0.31521444]
[1768786666629,0.22204274,92806.0,92783.0,0.32786827]